bitfinex-derivatives/quotes_BNBF0:USTF0_20250807
["timestamp","ask_amount","ask_price","bid_price","bid_amount"]
[1754532330373,0.86761831,770.46,769.63,0.87344132]
[1754532330973,0.86761831,770.49,769.66,0.87344132]
[1754532331176,0.86761831,770.5,769.68,0.87344132]
[1754532332381,0.86761831,770.51,769.68,0.87344132]
[1754532332881,0.86761831,770.5,769.68,0.87344132]
[1754532333381,0.86761831,770.51,769.66,0.87344132]
[1754532333581,0.86761831,770.53,769.65,0.87344132]
[1754532334386,0.86761831,770.54,769.67,0.87344132]
[1754532334589,0.86761831,770.54,769.66,0.87344132]
[1754532334886,0.86761831,770.51,769.63,0.87344132]
[1754532335181,0.8671854,770.47,769.62,0.861]
[1754532335485,0.8671854,770.46,769.62,0.861]
[1754532336386,0.8671854,770.4,769.62,0.861]
[1754532337081,0.8671854,770.37,769.62,0.861]
[1754532337285,0.8671854,770.34,769.62,0.861]
[1754532337681,0.8671854,770.31,769.62,0.861]
[1754532337985,0.8671854,770.3,769.62,0.861]
[1754532338782,0.8671854,770.27,769.62,0.861]
[1754532339186,0.8671854,770.28,769.62,0.861]
[1754532339385,0.8671854,770.27,769.62,0.861]
[1754532341384,0.8671854,770.26,769.62,0.861]
[1754532342987,0.8671854,770.25,769.62,0.861]
[1754532344189,0.8671854,770.24,769.62,0.861]
[1754532345388,0.8671854,770.25,769.62,0.861]
[1754532346686,0.8671854,770.26,769.62,0.861]
[1754532347185,0.8671854,770.27,769.62,0.861]
[1754532347989,0.8671854,770.26,769.62,0.861]
[1754532349285,0.8671854,770.25,769.62,0.861]
[1754532350292,0.8671854,770.26,769.62,0.861]
[1754532350692,0.8671854,770.27,769.62,0.861]
[1754532353997,0.8671854,770.28,769.62,0.861]
[1754532356096,1.1634231,770.44,769.62,0.861]
[1754532356294,0.86756562,770.28,769.62,0.861]
[1754532356592,0.86756562,770.27,769.62,0.861]
[1754532358297,0.86756562,770.26,769.62,0.861]
[1754532358597,0.86756562,770.27,769.62,0.861]
[1754532359899,0.22590435,770.66,769.62,0.861]
[1754532360997,0.86755806,770.25,769.62,0.861]
[1754532361702,0.86755806,770.24,769.62,0.861]
[1754532363303,0.86755806,770.23,769.62,0.861]
[1754532363499,0.86755806,770.25,769.62,0.861]
[1754532363902,0.86755806,770.23,769.62,0.861]
[1754532364304,0.86755806,770.24,769.62,0.861]
[1754532365404,0.86755806,770.23,769.62,0.861]
[1754532367207,0.86755806,770.24,769.62,0.861]
[1754532367809,0.86755806,770.23,769.62,0.861]
[1754532369110,0.86755806,770.24,769.62,0.861]
[1754532369410,0.86755806,770.23,769.62,0.861]
[1754532369613,0.86755806,770.24,769.62,0.861]
[1754532369815,0.86755806,770.23,769.62,0.861]
[1754532370810,0.86755806,770.24,769.62,0.861]
[1754532372013,0.86755806,770.26,769.62,0.861]
[1754532373312,0.86755806,770.29,769.62,0.861]
[1754532374412,0.86755806,770.3,769.62,0.861]
[1754532374615,0.86755806,770.31,769.62,0.861]
[1754532374915,0.86755806,770.29,769.62,0.861]
[1754532375115,0.86755806,770.36,769.69,0.87402156]
[1754532376412,0.86755806,770.34,769.69,0.87402156]
[1754532376615,0.86755806,770.34,769.62,0.861]
[1754532376616,0.86755806,770.34,769.7,0.87402156]
[1754532377415,0.86755806,770.35,769.69,0.87402156]
[1754532378311,0.86755806,770.34,769.7,0.87402156]
[1754532378515,0.86755806,770.35,769.7,0.87402156]
[1754532379915,0.86755806,770.34,769.7,0.87402156]
[1754532381912,0.86755806,770.35,769.7,0.87402156]
[1754532384319,0.86755806,770.35,769.69,0.87402156]
[1754532384815,0.86755806,770.35,769.7,0.87402156]
[1754532385217,0.86755806,770.35,769.69,0.87402156]
[1754532385420,0.86755806,770.36,769.69,0.87402156]
[1754532386418,0.86755806,770.35,769.69,0.87402156]
[1754532387323,0.86755806,770.35,769.7,0.87402156]
[1754532388218,0.86755806,770.35,769.69,0.87402156]
[1754532389818,0.86755806,770.36,769.7,0.993]
[1754532390220,0.86755806,770.35,769.7,0.993]
[1754532391415,0.86755806,770.47,769.7,0.993]
[1754532392318,0.86755806,770.46,769.7,0.993]
[1754532393121,0.86755806,770.33,769.7,0.993]
[1754532395023,0.86755806,770.3,769.7,0.993]
[1754532396225,0.86755806,770.33,769.7,0.993]
[1754532396723,0.86755806,770.28,769.7,0.993]
[1754532401024,0.86755806,770.28,769.7,0.993]
[1754532401429,0.86755806,770.27,769.7,0.993]
[1754532402025,0.86755806,770.28,769.7,0.993]
[1754532402828,0.86755806,770.27,769.7,0.993]
[1754532403329,0.86755806,770.28,769.7,0.993]
[1754532403529,0.86755806,770.26,769.7,0.993]
[1754532403930,0.86755806,770.27,769.7,0.993]
[1754532404426,0.86755806,770.3,769.7,0.993]
[1754532406330,0.86755806,770.28,769.7,0.993]
[1754532407231,0.86755806,770.33,769.73,0.87402156]
[1754532409034,0.86755806,770.34,769.72,0.87402156]
[1754532409832,0.86755806,770.35,769.72,0.87402156]
[1754532410133,0.86755806,770.36,769.72,0.87402156]
[1754532410834,0.86755806,770.39,769.75,0.87402156]
[1754532411933,0.86755806,770.4,769.75,0.87402156]
[1754532412453,0.86755806,770.4,769.74,0.87402156]
[1754532415133,0.86755806,770.39,769.74,0.87402156]
[1754532415638,0.86755806,770.4,769.74,0.87402156]
[1754532415837,0.86755806,770.41,769.74,0.87402156]
[1754532416539,0.86755806,770.41,769.73,0.87402156]
[1754532417142,0.86755806,770.41,769.74,0.87402156]
[1754532417638,0.86755806,770.41,769.73,0.87402156]
[1754532419747,0.86755806,770.4,769.74,0.87402156]
[1754532422443,0.86755806,770.41,769.75,0.87402156]
[1754532423950,0.86755806,770.41,769.77,0.87402156]
[1754532424545,0.86755806,770.42,769.77,0.87402156]
[1754532427651,0.86755806,770.46,769.81,0.87402156]
[1754532427848,0.86755806,770.47,769.8,0.87402156]
[1754532428051,0.86755806,770.51,769.84,0.87402156]
[1754532428450,0.86755806,770.51,769.83,0.87402156]
[1754532428654,0.86755806,770.59,769.78,0.87402156]
[1754532429450,0.86755806,770.6,769.78,0.87402156]
[1754532430151,0.86755806,770.63,769.76,0.87402156]
[1754532430355,0.86755806,770.63,769.75,0.87402156]
[1754532431651,0.86755806,770.64,769.76,0.87402156]
[1754532432357,0.86755806,770.64,769.26,0.22595862]
[1754532432358,0.86755806,770.65,769.75,0.87402156]
[1754532433254,0.22590435,770.66,769.73,0.87402156]
[1754532433659,0.22590435,770.66,769.74,1.154]
[1754532434253,0.22590435,770.66,769.75,0.87402156]
[1754532435560,0.22590435,770.66,769.74,2.02802156]
[1754532435858,0.22590435,770.66,769.74,2.02762908]
[1754532437563,0.22590435,770.66,769.74,1.154]
[1754532437858,0.22590435,770.66,769.75,0.87362908]
[1754532438458,0.22590435,770.66,769.76,0.87362908]
[1754532439356,0.22590435,770.66,769.75,0.87362908]
[1754532440156,0.22590435,770.66,769.76,0.87362908]
[1754532440655,0.86801666,770.72,769.76,0.87362908]
[1754532441054,0.86801666,770.71,769.77,0.87362908]
[1754532441460,0.86801666,770.72,769.77,0.87362908]
[1754532442153,0.86801666,770.71,769.77,0.87362908]
[1754532442359,0.86801666,770.71,769.79,0.87362908]
[1754532443357,0.86801666,770.71,769.74,1.154]
[1754532443358,0.86801666,770.67,769.82,0.87362908]
[1754532444159,0.86801666,770.64,769.84,0.87362908]
[1754532444958,0.86801666,770.64,769.83,0.87362908]
[1754532445368,0.86801666,770.65,769.83,0.87362908]
[1754532446769,0.86801666,770.63,769.84,0.87362908]
[1754532447170,0.86801666,770.64,769.84,0.87362908]
[1754532448467,0.86801666,770.64,769.83,0.87362908]
[1754532448667,0.86801666,770.64,769.84,0.87362908]
[1754532449572,0.86801666,770.64,769.83,0.87362908]
[1754532450371,0.86801666,770.65,769.83,0.87362908]
[1754532450973,0.86801666,770.64,769.83,0.87362908]
[1754532453374,0.86801666,770.64,769.84,0.87362908]
[1754532454977,0.86801666,770.62,769.85,0.87362908]
[1754532455774,0.86801666,770.61,769.86,0.87362908]
[1754532456878,0.22586916,770.75,769.72,0.87362908]
[1754532457076,0.22586916,770.75,769.78,0.87362908]
[1754532457473,0.22586916,770.75,769.8,0.87362908]
[1754532459878,0.86801666,770.89,769.8,0.87362908]
[1754532460178,0.22584497,770.81,769.8,0.87362908]
[1754532460372,0.22584497,770.81,769.81,0.87362908]
[1754532460573,0.22584497,770.81,769.73,0.83]
[1754532460574,0.22584497,770.81,769.82,0.87362908]
[1754532460875,0.22584497,770.81,769.84,0.87362908]
[1754532462181,0.86801666,770.87,769.85,0.87362908]
[1754532462377,0.86801666,770.71,769.96,0.87362908]
[1754532462577,0.86801666,770.84,769.95,0.87362908]
[1754532462877,0.22582299,770.94,769.73,0.83]
[1754532464378,1.09383965,770.94,769.73,0.83]
[1754532465482,0.86801666,770.93,769.73,0.83]
[1754532465777,1.09383965,770.94,769.73,1.70362908]
[1754532468382,0.86801666,770.93,769.74,0.87362908]
[1754532469278,0.22582299,770.94,769.77,0.87362908]
[1754532469279,0.86801666,770.88,769.77,0.87362908]
[1754532469583,0.86801666,770.81,769.82,0.87362908]
[1754532470085,0.86801666,770.79,769.83,0.87362908]
[1754532470281,0.86801666,770.77,769.85,0.87362908]
[1754532470485,0.86801666,770.76,769.85,0.87362908]
[1754532470686,0.86801666,770.79,769.88,0.87362908]
[1754532470887,0.22582299,770.94,769.73,0.83]
[1754532471183,0.86812504,770.8,769.89,0.87343146]
[1754532471487,0.86812504,770.71,769.95,0.87343146]
[1754532472387,0.86812504,770.76,769.99,0.87343146]
[1754532472688,0.86812504,770.75,770.0,0.87343146]
[1754532473184,0.86812504,770.82,769.94,0.87343146]
[1754532473388,0.86812504,770.83,769.94,0.87343146]
[1754532473587,0.86812504,770.83,769.95,0.87343146]
[1754532474489,0.86812504,770.75,769.88,0.87343146]
[1754532475785,0.86812504,770.75,769.89,0.87343146]
[1754532477289,0.86812504,770.74,769.89,0.87343146]
[1754532477490,0.86812504,770.74,769.9,0.87343146]
[1754532479290,1.38256699,770.94,769.91,0.87343146]
[1754532479291,0.86812504,770.73,769.91,0.87343146]
[1754532479489,0.86812504,770.74,769.9,0.87343146]
[1754532480592,0.86812504,770.63,769.97,0.87343146]
[1754532480791,0.86812504,770.63,769.98,0.87343146]
[1754532481091,0.86812504,770.6,769.99,0.87343146]
[1754532481588,0.86812504,770.6,770.0,0.87343146]
[1754532481791,0.86812504,770.59,770.0,0.87343146]
[1754532483093,0.86812504,770.6,769.99,0.87343146]
[1754532483790,0.86812504,770.6,769.96,0.87343146]
[1754532483993,0.86812504,770.54,769.91,0.87343146]
[1754532484191,0.86812504,770.58,769.89,0.87343146]
[1754532484391,1.156744,770.74,769.89,0.87343146]
[1754532484392,0.86812504,770.57,769.89,0.87343146]
[1754532485390,0.86812504,770.57,769.9,0.87343146]
[1754532486295,0.86812504,771.12,770.3,0.87343146]
[1754532486494,0.86812504,771.04,770.19,0.87343146]
[1754532487294,0.22582592,771.05,770.17,0.87343146]
[1754532487494,1.09395096,771.05,770.17,0.87343146]
[1754532487695,0.22582592,771.05,770.15,0.87343146]
[1754532488595,0.22582592,771.05,770.14,0.87343146]
[1754532489393,0.22582592,771.05,770.13,0.87343146]
[1754532489995,0.22582592,771.05,770.15,0.87343146]
[1754532490195,0.86812504,771.11,770.17,0.87343146]
[1754532490394,0.86812504,771.09,770.17,0.87343146]
[1754532490593,0.86812504,771.11,770.18,0.87343146]
[1754532490795,0.86812504,771.11,770.2,0.87343146]
[1754532491095,0.86812504,771.04,770.25,0.87343146]
[1754532491399,0.22575487,771.15,770.24,0.87343146]
[1754532491400,0.86812504,771.05,770.24,0.87343146]
[1754532491696,0.86812504,771.04,770.25,0.87343146]
[1754532492396,0.86812504,771.05,770.24,0.87343146]
[1754532492800,0.86812504,771.04,770.23,0.87343146]
[1754532493202,0.86812504,771.03,770.22,0.87343146]
[1754532493497,0.86812504,771.04,770.21,0.87343146]
[1754532494101,0.86812504,771.02,770.23,0.87343146]
[1754532494395,0.86812504,771.02,770.22,0.87343146]
[1754532495203,0.86812504,771.03,770.21,0.87343146]
[1754532496405,0.86812504,771.05,770.19,0.87343146]
[1754532497706,0.86812504,771.03,770.16,0.87343146]
[1754532498402,0.86812504,771.04,770.15,0.87343146]
[1754532499307,0.86812504,771.04,770.16,0.959]
[1754532499606,0.86812504,771.06,770.16,0.959]
[1754532499906,0.86812504,771.09,770.16,0.959]
[1754532500102,0.86812504,770.77,770.16,0.959]
[1754532500502,0.86812504,770.78,770.16,0.959]
[1754532500808,0.86812504,770.77,770.16,0.959]
[1754532503009,0.86812504,770.76,770.16,0.959]
[1754532503206,0.86812504,770.79,770.16,0.959]
[1754532503508,0.86812504,770.78,770.16,0.959]
[1754532504406,0.86812504,770.76,770.16,0.959]
[1754532505007,1.156744,770.97,770.16,0.959]
[1754532505008,0.86812504,770.77,770.16,0.959]
[1754532505409,0.86812504,770.8,770.16,0.959]
[1754532506711,0.86812504,770.79,770.16,0.959]
[1754532507411,0.86812504,770.78,770.16,0.959]
[1754532509911,0.86812504,770.8,770.16,0.959]
[1754532510615,0.86812504,770.79,770.16,0.959]
[1754532513014,0.86812504,770.72,770.16,0.959]
[1754532513515,1.7351161,771.02,770.16,0.959]
[1754532513516,0.86812504,770.73,770.16,0.959]
[1754532514018,0.86812504,770.74,770.16,0.959]
[1754532514213,0.86812504,770.7,770.16,0.959]
[1754532514417,0.86812504,770.69,770.16,0.959]
[1754532523525,1.156744,770.85,770.16,0.959]
[1754532523526,0.86812504,770.71,770.16,0.959]
[1754532523822,0.86812504,770.74,770.16,0.959]
[1754532524327,0.86812504,770.73,770.16,0.959]
[1754532524924,0.86812504,770.74,770.16,0.959]
[1754532525528,0.86812504,770.75,770.16,0.959]
[1754532529233,0.86812504,770.77,770.16,0.959]
[1754532529630,0.86812504,770.78,770.16,0.959]
[1754532529831,0.86812504,770.81,770.16,0.959]
[1754532530433,0.86812504,770.86,770.16,0.959]
[1754532533032,0.86812504,770.87,770.16,0.959]
[1754532533230,0.86812504,770.86,770.16,0.959]
[1754532533735,0.86812504,770.87,770.16,0.959]
[1754532534434,0.86812504,770.86,769.9,0.87343146]
[1754532534731,0.86812504,770.85,769.91,0.87343146]
[1754532534934,0.86812504,770.85,769.9,0.87343146]
[1754532535236,0.86812504,770.84,769.9,0.87343146]
[1754532536535,0.86812504,770.82,769.91,0.87343146]
[1754532537134,0.86812504,770.82,769.92,0.87343146]
[1754532537337,0.86812504,770.81,769.92,0.87343146]
[1754532537538,0.86812504,770.82,769.93,0.863]
[1754532538341,0.86812504,771.01,769.93,0.863]
[1754532538536,0.86812504,771.06,769.93,0.863]
[1754532539040,0.86812504,771.04,769.93,0.863]
[1754532539637,0.22575487,771.15,769.93,0.863]
[1754532539638,0.86812504,770.91,769.93,0.863]
[1754532540238,0.86812504,770.94,769.93,0.863]
[1754532540838,0.86812504,770.86,769.93,0.863]
[1754532541138,0.86812504,770.84,769.93,0.863]
[1754532543044,0.86812504,770.83,769.93,0.863]
[1754532544841,0.86812504,770.85,769.93,0.863]
[1754532545445,0.86812504,770.84,769.93,0.863]
[1754532546645,0.86812504,770.83,769.93,0.863]
[1754532548449,0.86812504,770.81,769.93,0.863]
[1754532548845,0.86812504,770.8,769.93,0.863]
[1754532549745,0.86812504,770.79,769.93,0.863]
[1754532550447,0.86812504,770.78,769.93,0.863]
[1754532550651,0.86812504,770.75,769.93,0.863]
[1754532551451,0.86812504,770.74,769.93,0.863]
[1754532551748,0.86812504,770.75,769.93,0.863]
[1754532552349,0.86812504,770.74,769.93,0.863]
[1754532552852,0.86812504,770.73,769.93,0.863]
[1754532553253,0.86812504,770.72,769.93,0.863]
[1754532554354,0.86812504,770.72,769.93,1.73643146]
[1754532555551,0.86812504,770.71,769.94,0.87343146]
[1754532555751,0.86812504,770.7,769.95,0.87343146]
[1754532556252,0.86812504,770.69,769.96,0.87343146]
[1754532557357,0.86812504,770.67,769.97,0.87343146]
[1754532557857,0.86812504,770.65,769.98,0.87343146]
[1754532558353,0.86812504,770.65,770.0,0.87343146]
[1754532558557,0.86812504,770.64,770.0,0.87343146]
[1754532559457,0.86812504,770.62,770.02,0.87343146]
[1754532560353,0.22575487,771.15,769.93,0.863]
[1754532560354,0.86812504,770.63,770.04,0.87343146]
[1754532562456,0.86812504,770.62,770.04,0.87343146]
[1754532563253,0.86812504,770.64,770.05,0.87343146]
[1754532563458,0.86812504,770.75,770.16,0.87343146]
[1754532563658,0.86812504,770.76,770.15,0.87343146]
[1754532564457,0.86812504,770.76,770.14,0.87343146]
[1754532564657,0.86812504,770.76,770.15,0.87343146]
[1754532565453,0.86812504,770.76,770.14,0.87343146]
[1754532566456,0.86812504,770.77,770.14,0.87343146]
[1754532568661,0.86812504,770.78,770.13,0.87343146]
[1754532570260,0.86812504,770.77,770.13,0.87343146]
[1754532570459,0.86812504,770.78,770.13,0.87343146]
[1754532573060,0.86812504,770.77,770.13,0.87343146]
[1754532573564,0.22575487,771.15,770.12,0.87343146]
[1754532573565,0.86812504,770.79,770.12,0.87343146]
[1754532574965,0.86812504,770.84,770.16,0.87343146]
[1754532575461,0.86812504,770.85,770.16,0.87343146]
[1754532576960,0.86812504,770.85,770.15,0.87343146]
[1754532577164,0.86812504,770.85,770.16,0.87343146]
[1754532577462,0.86812504,770.85,770.15,0.87343146]
[1754532578263,0.86812504,770.85,770.16,0.87343146]
[1754532578464,0.86812504,770.86,770.15,0.87343146]
[1754532579167,0.22575487,771.15,770.16,0.87343146]
[1754532579168,0.86812504,770.85,770.16,0.87343146]
[1754532582068,0.86812504,770.86,770.15,0.87343146]
[1754532583467,0.86812504,770.85,770.15,0.87343146]
[1754532584169,0.86812504,770.85,770.16,0.87343146]
[1754532584367,0.86812504,770.85,770.15,0.87343146]
[1754532585164,0.86812504,770.85,770.16,0.87343146]
[1754532586768,0.86812504,770.85,770.17,0.87343146]
[1754532587070,0.86812504,770.89,770.13,0.87343146]
[1754532587568,0.86812504,770.88,770.14,1.184]
[1754532588769,0.86812504,770.78,770.14,1.184]
[1754532589071,0.86812504,770.76,770.14,1.184]
[1754532592071,0.86812504,770.75,770.14,1.184]
[1754532592274,0.86812504,770.76,770.14,1.184]
[1754532593276,0.86812504,770.75,770.14,1.184]
[1754532595177,0.86812504,770.76,770.14,1.184]
[1754532596878,0.86812504,770.7,770.14,1.184]
[1754532597585,0.86812504,770.69,770.14,1.184]
[1754532602290,0.86812504,770.68,770.14,1.184]
[1754532604494,0.86812504,770.69,770.14,1.184]
[1754532604794,0.86812504,770.68,770.14,1.184]
[1754532605590,0.86812504,770.69,770.14,1.184]
[1754532606396,0.86812504,770.68,770.14,1.184]
[1754532606992,0.86812504,770.83,770.14,1.184]
[1754532607293,0.86812504,770.8,770.14,1.184]
[1754532607694,0.86812504,770.81,770.14,1.184]
[1754532608601,0.86812504,770.87,770.14,1.184]
[1754532608797,0.86812504,770.88,770.14,1.184]
[1754532613404,0.86812504,770.87,770.14,1.184]
[1754532614307,0.86812504,770.79,770.14,1.184]
[1754532615603,0.86812504,770.78,770.14,1.184]
[1754532616804,0.86812504,770.75,770.14,1.184]
[1754532617104,0.86812504,770.74,770.14,1.184]
[1754532617809,0.22575487,771.15,770.14,2.05743146]
[1754532617810,0.86812504,770.73,770.14,2.05743146]
[1754532618004,0.86812504,770.72,770.15,0.87343146]
[1754532618309,0.86812504,770.71,770.16,0.87343146]
[1754532618606,0.86812504,770.7,770.16,0.87343146]
[1754532620508,0.86812504,770.7,770.17,0.87343146]
[1754532621308,0.86812504,770.7,770.16,0.87343146]
[1754532621512,0.86812504,770.7,770.17,0.87343146]
[1754532622611,0.86812504,770.69,770.17,0.87343146]
[1754532625912,0.86812504,770.7,770.17,0.87343146]
[1754532627415,0.86812504,770.7,770.16,0.87343146]
[1754532628211,0.86812504,770.71,770.16,0.87343146]
[1754532629712,0.86812504,770.72,770.15,0.87343146]
[1754532631216,0.86812504,770.72,770.16,0.87343146]
[1754532631712,0.86812504,770.73,770.16,0.87343146]
[1754532632417,0.86812504,770.76,770.15,0.87343146]
[1754532632818,0.86812504,770.84,770.14,1.184]
[1754532634719,0.86812504,770.86,770.14,1.184]
[1754532634920,0.22575487,771.15,770.17,0.87343146]
[1754532634921,0.86812504,770.92,770.17,0.87343146]
[1754532636020,0.86812504,771.0,770.25,0.87343146]
[1754532636216,0.86812504,771.01,770.26,0.87343146]
[1754532636421,0.86812504,771.02,770.25,0.87343146]
[1754532636619,0.86812504,771.04,770.28,0.87343146]
[1754532637520,0.86812504,771.05,770.27,0.87343146]
[1754532638218,0.86812504,771.06,770.27,0.87343146]
[1754532638415,0.86812504,771.06,770.26,0.87343146]
[1754532638615,0.86812504,771.06,770.14,1.184]
[1754532638616,0.86812504,771.06,770.27,0.87343146]
[1754532639420,0.86812504,771.07,770.27,0.87343146]
[1754532640424,0.86812504,771.08,770.26,0.87343146]
[1754532640921,0.86812504,771.07,770.26,0.87343146]
[1754532641422,0.86812504,771.08,770.25,0.87343146]
[1754532642022,0.86812504,771.08,770.26,1.225]
[1754532642325,0.86812504,771.09,770.26,1.225]
[1754532642718,0.86812504,771.0,770.31,0.87343146]
[1754532643422,0.86812504,771.01,770.31,0.87343146]
[1754532643624,0.86812504,771.03,770.33,0.87343146]
[1754532644325,0.86812504,771.04,770.32,0.87343146]
[1754532646028,0.86812504,771.07,770.34,0.87343146]
[1754532646425,0.86812504,771.07,770.26,1.225]
[1754532646426,0.86812504,771.07,770.33,0.87343146]
[1754532647129,0.86812504,771.12,770.38,0.87343146]
[1754532647324,0.86812504,771.13,770.37,0.87343146]
[1754532648331,0.86812504,771.14,770.36,0.87343146]
[1754532648529,0.86812504,771.13,770.37,0.87343146]
[1754532649330,0.86812504,771.14,770.36,0.87343146]
[1754532649734,0.86812504,771.13,770.37,0.87343146]
[1754532650335,0.86812504,771.12,770.37,0.87343146]
[1754532650933,0.86812504,771.13,770.36,0.87343146]
[1754532651333,0.86812504,771.14,770.35,0.87343146]
[1754532651834,1.09387991,771.15,770.35,0.87343146]
[1754532652429,1.09387991,771.15,770.34,0.87343146]
[1754532653933,0.86812504,771.14,770.34,0.87343146]
[1754532654331,1.09387991,771.15,770.34,0.87343146]
[1754532656332,1.09387991,771.15,770.33,0.87343146]
[1754532656836,0.86812504,771.22,770.29,0.87343146]
[1754532658336,0.86812504,771.22,770.28,0.87343146]
[1754532659032,0.22571826,771.28,770.36,0.87343146]
[1754532659336,0.22571826,771.28,770.35,0.87343146]
[1754532660233,0.22571826,771.28,770.35,0.87079884]
[1754532661733,0.22571826,771.28,770.34,0.87079884]
[1754532662737,0.22571826,771.28,770.33,0.87079884]
[1754532664334,0.22571826,771.28,770.32,0.87079884]
[1754532666034,0.22571826,771.28,770.31,0.87079884]
[1754532666238,0.22571826,771.28,770.3,0.87079884]
[1754532666640,0.22571826,771.28,770.31,0.87079884]
[1754532666939,0.22571826,771.28,770.29,0.87079884]
[1754532671042,0.22571826,771.28,770.27,0.87079884]
[1754532673439,0.22571826,771.28,770.31,0.87079884]
[1754532673640,0.86516289,771.38,770.39,0.87079884]
[1754532674241,0.22568972,771.4,770.44,0.87079884]
[1754532675343,0.22568972,771.4,770.43,0.87079884]
[1754532676743,0.22568972,771.4,770.45,0.87079884]
[1754532677240,0.22568972,771.4,770.44,0.87079884]
[1754532677545,0.22568972,771.4,770.4,0.87079884]
[1754532679443,0.22568972,771.4,770.38,0.87079884]
[1754532679646,0.22568972,771.4,770.37,0.87079884]
[1754532680342,0.22568972,771.4,770.36,0.87079884]
[1754532682047,0.22568972,771.4,770.34,0.87079884]
[1754532682248,0.22568972,771.4,770.37,1.014]
[1754532688256,0.22568972,771.4,770.38,0.87079884]
[1754532688549,0.22568972,771.4,770.39,0.87079884]
[1754532689354,0.22568972,771.4,770.4,0.87079884]
[1754532691053,0.22568972,771.4,770.41,0.87079884]
[1754532691454,0.22568972,771.4,770.37,1.014]
[1754532691455,0.22568972,771.4,770.42,0.87079884]
[1754532692452,0.22568972,771.4,770.43,0.87079884]
[1754532692755,0.22568972,771.4,770.5,0.87079884]
[1754532692951,0.22568972,771.4,770.37,1.014]
[1754532693149,0.22568972,771.4,770.5,0.8709188]
[1754532693354,0.22568972,771.4,770.51,0.8709188]
[1754532693554,0.86536632,771.52,770.51,0.8709188]
[1754532693852,0.86536632,771.52,770.37,1.014]
[1754532693853,0.86536632,771.48,770.56,0.8709188]
[1754532694054,1.09100848,771.53,770.61,0.8709188]
[1754532694453,0.86536632,771.52,770.62,0.8709188]
[1754532695353,0.86536632,771.52,770.63,0.8709188]
[1754532695856,0.86536632,771.51,770.63,0.8709188]
[1754532696059,0.86536632,771.52,770.62,0.8709188]
[1754532696260,1.09100848,771.53,770.62,0.8709188]
[1754532696957,0.22564216,771.53,770.63,0.8709188]
[1754532700963,0.22564216,771.53,770.64,0.8709188]
[1754532701161,0.22564216,771.53,770.63,0.8709188]
[1754532702365,0.22564216,771.53,770.64,0.8709188]
[1754532703566,1.09100848,771.53,770.64,0.8709188]
[1754532704168,1.09100848,771.53,770.65,0.964]
[1754532705263,0.22564216,771.53,770.65,0.964]
[1754532705466,1.09100848,771.53,770.65,1.8349188]
[1754532705862,0.86536632,771.52,770.65,1.8349188]
[1754532706367,0.22564216,771.53,770.65,0.964]
[1754532716370,1.09100848,771.53,770.65,1.8349188]
[1754532716670,0.22564216,771.53,770.67,0.8709188]
[1754532716973,0.86536632,771.45,770.65,0.964]
[1754532718376,0.86536632,771.44,770.65,0.964]
[1754532721073,0.86536632,771.42,770.65,0.964]
[1754532721272,0.86536632,771.39,770.65,0.964]
[1754532721977,0.86536632,771.48,770.65,0.964]
[1754532723176,0.86536632,771.47,770.65,0.964]
[1754532724479,0.86536632,771.45,770.65,0.964]
[1754532726074,0.86536632,771.45,770.48,0.8709188]
[1754532726280,0.86536632,771.45,770.49,0.8709188]
[1754532727280,0.86536632,771.44,770.49,0.8709188]
[1754532728082,0.86536632,771.45,770.5,0.8709188]
[1754532728282,0.86536632,771.44,770.5,0.8709188]
[1754532729182,0.86536632,771.44,770.51,0.846]
[1754532729582,0.86536632,771.44,770.51,1.7169188]
[1754532730283,0.86536632,771.43,770.51,1.7169188]
[1754532731079,0.86536632,771.33,770.58,0.8709188]
[1754532731283,0.86536632,771.32,770.59,0.8709188]
[1754532732283,0.86536632,771.31,770.6,0.8709188]
[1754532733189,0.86536632,771.3,770.61,0.8709188]
[1754532733385,0.86536632,771.29,770.61,0.8709188]
[1754532734389,0.86536632,771.28,770.62,0.8709188]
[1754532735385,0.86536632,771.3,770.61,0.8709188]
[1754532735887,0.86536632,771.29,770.61,0.8709188]
[1754532736185,0.86536632,771.3,770.61,0.8709188]
[1754532737484,0.86536632,771.38,770.55,0.8709188]
[1754532738485,0.86536632,771.39,770.57,0.8709188]
[1754532738789,0.86536632,771.4,770.57,0.8709188]
[1754532738987,0.86536632,771.39,770.57,0.8709188]
[1754532741091,0.86536632,771.4,770.57,0.8709188]
[1754532742396,0.86536632,771.39,770.57,0.8709188]
[1754532745996,0.86536632,771.39,770.58,0.8709188]
[1754532746192,0.86536632,771.39,770.57,0.8709188]